[Event "Titled Tuesday Blitz February 28 Early 2023"]
[White "Klepikov, Nikita"]
[Black "Golubev, Mikhail"]
[WhiteFideId "24145220"]
[BlackFideId "14100983"]
[WhiteElo "2025"]
[BlackElo "2374"]
[Result "1-0"]
[Round "02"]
[TimeControl "180+2"]
[Date "2023.02.28"]
[WhiteClock "0:00:30"]
[BlackClock "0:01:35"]

1. e4 {[%clk 0:03:00]}  c5 {[%clk 0:02:54]} 2. Nf3 {[%clk 0:03:00]}  d6 {[%clk 0:02:54]} 3. d4 {[%clk 0:03:00]}  cxd4 {[%clk 0:02:53]} 4. Nxd4 {[%clk 0:03:01]}  Nf6 {[%clk 0:02:53]} 5. Nc3 {[%clk 0:03:02]}  Nc6 {[%clk 0:02:54]} 6. Bc4 {[%clk 0:02:57]}  e6 {[%clk 0:02:53]} 7. Bb3 {[%clk 0:02:52]}  a6 {[%clk 0:02:46]} 8. Be3 {[%clk 0:02:36]}  Qc7 {[%clk 0:02:45]} 9. Qe2 {[%clk 0:02:32]}  Na5 {[%clk 0:02:42]} 10. g4 {[%clk 0:02:30]}  b5 {[%clk 0:02:40]} 11. g5 {[%clk 0:02:29]}  Nd7 {[%clk 0:02:40]} 12. Bxe6 {[%clk 0:02:21]}  fxe6 {[%clk 0:02:39]} 13. Nxe6 {[%clk 0:02:22]}  Qc4 {[%clk 0:02:38]} 14. Qxc4 {[%clk 0:02:18]}  Nxc4 {[%clk 0:02:37]} 15. Nc7+ {[%clk 0:02:19]}  Kd8 {[%clk 0:02:37]} 16. Nxa8 {[%clk 0:02:20]}  Nxe3 {[%clk 0:02:33]} 17. fxe3 {[%clk 0:02:19]}  Bb7 {[%clk 0:02:34]} 18. O-O-O {[%clk 0:02:08]}  Bxa8 {[%clk 0:02:33]} 19. Rhf1 {[%clk 0:02:04]}  Ne5 {[%clk 0:02:29]} 20. Rf5 {[%clk 0:01:55]}  Be7 {[%clk 0:02:24]} 21. Rxe5 {[%clk 0:01:53]}  b4 {[%clk 0:02:24]} 22. Na4 {[%clk 0:01:40]}  Rf8 {[%clk 0:02:20]} 23. Nb6 {[%clk 0:01:17]}  Bc6 {[%clk 0:02:14]} 24. Re6 {[%clk 0:00:59]}  Bd7 {[%clk 0:01:54]} 25. Rexd6 {[%clk 0:00:50]}  Bxd6 {[%clk 0:01:53]} 26. Rxd6 {[%clk 0:00:50]}  Kc7 {[%clk 0:01:53]} 27. Rxd7+ {[%clk 0:00:40]}  Kxb6 {[%clk 0:01:52]} 28. Rxg7 {[%clk 0:00:38]}  Rf1+ {[%clk 0:01:52]} 29. Kd2 {[%clk 0:00:38]}  Rf2+ {[%clk 0:01:53]} 30. Kd3 {[%clk 0:00:38]}  Rxh2 {[%clk 0:01:54]} 31. e5 {[%clk 0:00:35]}  Rf2 {[%clk 0:01:37]} 32. e6 {[%clk 0:00:32]}  Rf8 {[%clk 0:01:37]} 33. e7 {[%clk 0:00:32]}  Re8 {[%clk 0:01:37]} 34. Rxh7 {[%clk 0:00:32]}  Kc5 {[%clk 0:01:37]} 35. g6 {[%clk 0:00:31]}  Kd6 {[%clk 0:01:36]} 36. g7 {[%clk 0:00:32]}  Rg8 {[%clk 0:01:35]} 37. Rh8 {[%clk 0:00:30]} 1-0


[Site "https://www.chess.com"]

[Event "Titled Tuesday Blitz February 28 Early 2023"]
[White "Yurasova, Daria"]
[Black "Jiganchine, Roman"]
[WhiteFideId "34146919"]
[BlackFideId "2603667"]
[WhiteElo "2134"]
[BlackElo "2275"]
[Result "1-0"]
[Round "02"]
[TimeControl "180+2"]
[Date "2023.02.28"]
[WhiteClock "0:00:12"]
[BlackClock "0:00:01"]

1. d4 {[%clk 0:03:00]}  d5 {[%clk 0:02:59]} 2. Nf3 {[%clk 0:03:00]}  Nf6 {[%clk 0:02:57]} 3. c4 {[%clk 0:03:01]}  e6 {[%clk 0:02:57]} 4. g3 {[%clk 0:03:01]}  h6 {[%clk 0:02:57]} 5. Bg2 {[%clk 0:03:01]}  Bd6 {[%clk 0:02:56]} 6. O-O {[%clk 0:03:02]}  O-O {[%clk 0:02:56]} 7. Qc2 {[%clk 0:03:01]}  Nc6 {[%clk 0:02:51]} 8. Nc3 {[%clk 0:02:57]}  dxc4 {[%clk 0:02:48]} 9. e4 {[%clk 0:02:56]}  e5 {[%clk 0:02:48]} 10. d5 {[%clk 0:02:45]}  Nb4 {[%clk 0:02:29]} 11. Qe2 {[%clk 0:02:41]}  Nd3 {[%clk 0:02:29]} 12. Be3 {[%clk 0:02:34]}  Bd7 {[%clk 0:02:13]} 13. b3 {[%clk 0:02:34]}  b5 {[%clk 0:02:12]} 14. bxc4 {[%clk 0:02:32]}  bxc4 {[%clk 0:02:12]} 15. Ne1 {[%clk 0:02:31]}  Bb4 {[%clk 0:01:49]} 16. Qc2 {[%clk 0:01:58]}  Ng4 {[%clk 0:01:27]} 17. Bd2 {[%clk 0:01:16]}  Ndxf2 {[%clk 0:01:12]} 18. Rxf2 {[%clk 0:01:15]}  Bc5 {[%clk 0:01:12]} 19. Nd1 {[%clk 0:01:12]}  f5 {[%clk 0:01:02]} 20. Qxc4 {[%clk 0:00:46]}  Bd4 {[%clk 0:00:51]} 21. Bc3 {[%clk 0:00:41]}  Bxf2+ {[%clk 0:00:41]} 22. Nxf2 {[%clk 0:00:41]}  Nxf2 {[%clk 0:00:40]} 23. Kxf2 {[%clk 0:00:41]}  fxe4+ {[%clk 0:00:40]} 24. Kg1 {[%clk 0:00:41]}  Qf6 {[%clk 0:00:28]} 25. Qxe4 {[%clk 0:00:31]}  Rae8 {[%clk 0:00:23]} 26. Nd3 {[%clk 0:00:23]}  Qb6+ {[%clk 0:00:22]} 27. Kh1 {[%clk 0:00:21]}  Bf5 {[%clk 0:00:22]} 28. Qc4 {[%clk 0:00:20]}  e4 {[%clk 0:00:19]} 29. Nf4 {[%clk 0:00:20]}  e3 {[%clk 0:00:16]} 30. Re1 {[%clk 0:00:14]}  Qd6 {[%clk 0:00:08]} 31. Bb4 {[%clk 0:00:13]}  c5 {[%clk 0:00:04]} 32. Bxc5 {[%clk 0:00:12]}  Qe5 {[%clk 0:00:03]} 33. Bxf8 {[%clk 0:00:12]}  Rxf8 {[%clk 0:00:03]} 34. h3 {[%clk 0:00:12]}  Re8 {[%clk 0:00:01]} 35. d6+ {[%clk 0:00:12]} 1-0


[Site "https://www.chess.com"]

[Event "Titled Tuesday Blitz February 28 Early 2023"]
[White "Fieberg, Samuel"]
[Black "De Souza, Cristiano Gomes"]
[WhiteFideId "12901717"]
[BlackFideId "2151758"]
[WhiteElo "2480"]
[BlackElo "2068"]
[Result "1/2-1/2"]
[Round "02"]
[TimeControl "180+2"]
[Date "2023.02.28"]
[WhiteClock "0:00:12"]
[BlackClock "0:00:03"]

1. c4 {[%clk 0:03:00]}  Nf6 {[%clk 0:02:58]} 2. g3 {[%clk 0:03:00]}  g6 {[%clk 0:02:58]} 3. Bg2 {[%clk 0:03:01]}  Bg7 {[%clk 0:02:59]} 4. Nf3 {[%clk 0:03:01]}  O-O {[%clk 0:02:59]} 5. O-O {[%clk 0:03:02]}  d6 {[%clk 0:03:00]} 6. Nc3 {[%clk 0:03:00]}  Nc6 {[%clk 0:03:00]} 7. d4 {[%clk 0:03:00]}  Bf5 {[%clk 0:02:59]} 8. Nh4 {[%clk 0:02:58]}  Bd7 {[%clk 0:02:58]} 9. d5 {[%clk 0:02:53]}  Na5 {[%clk 0:02:57]} 10. Qd3 {[%clk 0:02:44]}  Ng4 {[%clk 0:02:44]} 11. f4 {[%clk 0:02:33]}  c5 {[%clk 0:02:36]} 12. e3 {[%clk 0:02:21]}  a6 {[%clk 0:02:34]} 13. h3 {[%clk 0:02:17]}  Nh6 {[%clk 0:02:33]} 14. g4 {[%clk 0:02:14]}  b5 {[%clk 0:02:32]} 15. b3 {[%clk 0:02:13]}  b4 {[%clk 0:02:29]} 16. Bd2 {[%clk 0:02:08]}  bxc3 {[%clk 0:02:28]} 17. Bxc3 {[%clk 0:02:09]}  Nb7 {[%clk 0:02:24]} 18. e4 {[%clk 0:02:00]}  f5 {[%clk 0:01:28]} 19. gxf5 {[%clk 0:01:52]}  Bxc3 {[%clk 0:01:21]} 20. Qxc3 {[%clk 0:01:47]}  gxf5 {[%clk 0:01:21]} 21. Kh2 {[%clk 0:01:36]}  e5 {[%clk 0:00:58]} 22. dxe6 {[%clk 0:01:31]}  Qxh4 {[%clk 0:00:52]} 23. exf5 {[%clk 0:01:23]}  Nxf5 {[%clk 0:00:46]} 24. Bxb7 {[%clk 0:01:00]}  Bxe6 {[%clk 0:00:41]} 25. Rae1 {[%clk 0:00:40]}  Nd4 {[%clk 0:00:32]} 26. Bxa8 {[%clk 0:00:27]}  Rxa8 {[%clk 0:00:22]} 27. f5 {[%clk 0:00:27]}  Bf7 {[%clk 0:00:18]} 28. Rg1+ {[%clk 0:00:27]}  Kf8 {[%clk 0:00:11]} 29. Rg3 {[%clk 0:00:21]}  Qf4 {[%clk 0:00:11]} 30. Qe3 {[%clk 0:00:19]}  Qxe3 {[%clk 0:00:10]} 31. Rgxe3 {[%clk 0:00:19]}  Re8 {[%clk 0:00:10]} 32. Rxe8+ {[%clk 0:00:18]}  Bxe8 {[%clk 0:00:10]} 33. Rf1 {[%clk 0:00:19]}  Bc6 {[%clk 0:00:11]} 34. Kg3 {[%clk 0:00:19]}  Kf7 {[%clk 0:00:11]} 35. Kf4 {[%clk 0:00:18]}  Kf6 {[%clk 0:00:11]} 36. Kg4 {[%clk 0:00:17]}  Ne2 {[%clk 0:00:11]} 37. Rd1 {[%clk 0:00:16]}  Nd4 {[%clk 0:00:11]} 38. Rf1 {[%clk 0:00:16]}  Bd7 {[%clk 0:00:12]} 39. Kf4 {[%clk 0:00:14]}  Bxf5 {[%clk 0:00:12]} 40. Rd1 {[%clk 0:00:15]}  Bxh3 {[%clk 0:00:12]} 41. b4 {[%clk 0:00:14]}  Bf5 {[%clk 0:00:11]} 42. bxc5 {[%clk 0:00:14]}  dxc5 {[%clk 0:00:11]} 43. Rd2 {[%clk 0:00:14]}  Be6 {[%clk 0:00:12]} 44. Rb2 {[%clk 0:00:15]}  Bxc4 {[%clk 0:00:12]} 45. Rb6+ {[%clk 0:00:15]}  Ne6+ {[%clk 0:00:13]} 46. Ke3 {[%clk 0:00:14]}  Bb5 {[%clk 0:00:13]} 47. a4 {[%clk 0:00:14]}  c4 {[%clk 0:00:14]} 48. axb5 {[%clk 0:00:14]}  axb5 {[%clk 0:00:14]} 49. Rxb5 {[%clk 0:00:14]}  Ng5 {[%clk 0:00:14]} 50. Rb6+ {[%clk 0:00:14]}  Kf5 {[%clk 0:00:14]} 51. Rb5+ {[%clk 0:00:15]}  Kg4 {[%clk 0:00:15]} 52. Rc5 {[%clk 0:00:15]}  h5 {[%clk 0:00:16]} 53. Rxc4+ {[%clk 0:00:16]}  Kh3 {[%clk 0:00:16]} 54. Kf2 {[%clk 0:00:16]}  h4 {[%clk 0:00:16]} 55. Rc3+ {[%clk 0:00:17]}  Kg4 {[%clk 0:00:17]} 56. Rc4+ {[%clk 0:00:18]}  Kh5 {[%clk 0:00:17]} 57. Rc5 {[%clk 0:00:18]}  h3 {[%clk 0:00:18]} 58. Kg3 {[%clk 0:00:19]}  Kg6 {[%clk 0:00:18]} 59. Rc1 {[%clk 0:00:19]}  Ne4+ {[%clk 0:00:19]} 60. Kxh3 {[%clk 0:00:18]}  Nf2+ {[%clk 0:00:19]} 61. Kg3 {[%clk 0:00:17]}  Nd3 {[%clk 0:00:20]} 62. Rc6+ {[%clk 0:00:17]}  Kf5 {[%clk 0:00:20]} 63. Ra6 {[%clk 0:00:18]}  Ne5 {[%clk 0:00:20]} 64. Ra5 {[%clk 0:00:18]}  Ke6 {[%clk 0:00:20]} 65. Kf4 {[%clk 0:00:19]}  Nd3+ {[%clk 0:00:20]} 66. Ke4 {[%clk 0:00:18]}  Nb4 {[%clk 0:00:20]} 67. Ra1 {[%clk 0:00:17]}  Kd6 {[%clk 0:00:21]} 68. Rh1 {[%clk 0:00:18]}  Kc5 {[%clk 0:00:21]} 69. Rc1+ {[%clk 0:00:19]}  Kb5 {[%clk 0:00:21]} 70. Kd4 {[%clk 0:00:17]}  Nc6+ {[%clk 0:00:21]} 71. Kd5 {[%clk 0:00:17]}  Nb4+ {[%clk 0:00:21]} 72. Kd6 {[%clk 0:00:17]}  Nd3 {[%clk 0:00:21]} 73. Rc3 {[%clk 0:00:15]}  Nb4 {[%clk 0:00:20]} 74. Rc8 {[%clk 0:00:14]}  Nd3 {[%clk 0:00:19]} 75. Rb8+ {[%clk 0:00:12]}  Kc4 {[%clk 0:00:18]} 76. Rh8 {[%clk 0:00:11]}  Kd4 {[%clk 0:00:18]} 77. Rh4+ {[%clk 0:00:11]}  Kc3 {[%clk 0:00:17]} 78. Kd5 {[%clk 0:00:11]}  Nb4+ {[%clk 0:00:16]} 79. Kc5 {[%clk 0:00:11]}  Nd3+ {[%clk 0:00:16]} 80. Kd5 {[%clk 0:00:10]}  Nb4+ {[%clk 0:00:16]} 81. Ke4 {[%clk 0:00:11]}  Kc4 {[%clk 0:00:15]} 82. Rh1 {[%clk 0:00:11]}  Kc5 {[%clk 0:00:14]} 83. Rc1+ {[%clk 0:00:11]}  Kd6 {[%clk 0:00:14]} 84. Rd1+ {[%clk 0:00:09]}  Kc5 {[%clk 0:00:13]} 85. Ke5 {[%clk 0:00:10]}  Nc6+ {[%clk 0:00:11]} 86. Ke6 {[%clk 0:00:09]}  Nd4+ {[%clk 0:00:11]} 87. Ke5 {[%clk 0:00:09]}  Nc6+ {[%clk 0:00:12]} 88. Ke4 {[%clk 0:00:10]}  Nb4 {[%clk 0:00:09]} 89. Rg1 {[%clk 0:00:11]}  Nc6 {[%clk 0:00:07]} 90. Rg6 {[%clk 0:00:11]}  Nb4 {[%clk 0:00:07]} 91. Rg5+ {[%clk 0:00:12]}  Kc4 {[%clk 0:00:07]} 92. Rg6 {[%clk 0:00:10]}  Kc5 {[%clk 0:00:06]} 93. Rf6 {[%clk 0:00:10]}  Nc6 {[%clk 0:00:05]} 94. Re6 {[%clk 0:00:10]}  Nb4 {[%clk 0:00:05]} 95. Ke3 {[%clk 0:00:09]}  Nd5+ {[%clk 0:00:05]} 96. Kd2 {[%clk 0:00:07]}  Nb4 {[%clk 0:00:05]} 97. Re5+ {[%clk 0:00:07]}  Kd4 {[%clk 0:00:05]} 98. Rh5 {[%clk 0:00:07]}  Nd5 {[%clk 0:00:05]} 99. Rh4+ {[%clk 0:00:08]}  Ke5 {[%clk 0:00:05]} 100. Kd3 {[%clk 0:00:09]}  Nf4+ {[%clk 0:00:05]} 101. Kc4 {[%clk 0:00:09]}  Ne6 {[%clk 0:00:05]} 102. Rh1 {[%clk 0:00:10]}  Kd6 {[%clk 0:00:04]} 103. Re1 {[%clk 0:00:11]}  Nf4 {[%clk 0:00:04]} 104. Kd4 {[%clk 0:00:10]}  Ne6+ {[%clk 0:00:04]} 105. Ke4 {[%clk 0:00:10]}  Nc5+ {[%clk 0:00:04]} 106. Kf5 {[%clk 0:00:11]}  Kd5 {[%clk 0:00:03]} 107. Rd1+ {[%clk 0:00:12]}  Kc4 {[%clk 0:00:03]} 108. Rc1+ {[%clk 0:00:12]}  Kd4 {[%clk 0:00:03]} 109. Rh1 {[%clk 0:00:13]}  Nd3 {[%clk 0:00:03]} 110. Rh3 {[%clk 0:00:12]} 1/2-1/2


[Site "https://www.chess.com"]

[Event "Titled Tuesday Blitz February 28 Early 2023"]
[White "Kohler, Aran"]
[Black "Rodriguez Fontecha, Marcos"]
[WhiteFideId "1002856"]
[BlackFideId "2256576"]
[WhiteElo "2253"]
[BlackElo "2263"]
[Result "1/2-1/2"]
[Round "02"]
[TimeControl "180+2"]
[Date "2023.02.28"]
[WhiteClock "0:01:56"]
[BlackClock "0:00:19"]

1. d4 {[%clk 0:02:58]}  d5 {[%clk 0:03:00]} 2. Nf3 {[%clk 0:02:59]}  Nf6 {[%clk 0:02:59]} 3. Bf4 {[%clk 0:02:59]}  c5 {[%clk 0:02:58]} 4. e3 {[%clk 0:02:59]}  Nc6 {[%clk 0:02:58]} 5. c3 {[%clk 0:02:59]}  Qb6 {[%clk 0:02:58]} 6. Qb3 {[%clk 0:02:57]}  c4 {[%clk 0:02:59]} 7. Qc2 {[%clk 0:02:57]}  Bf5 {[%clk 0:02:59]} 8. Qc1 {[%clk 0:02:58]}  e6 {[%clk 0:02:56]} 9. Nbd2 {[%clk 0:02:58]}  Be7 {[%clk 0:02:56]} 10. h3 {[%clk 0:02:59]}  h6 {[%clk 0:02:55]} 11. Be2 {[%clk 0:02:59]}  O-O {[%clk 0:02:55]} 12. O-O {[%clk 0:02:59]}  Qd8 {[%clk 0:02:56]} 13. b4 {[%clk 0:02:56]}  cxb3 {[%clk 0:02:47]} 14. axb3 {[%clk 0:02:56]}  Rc8 {[%clk 0:02:47]} 15. Qb2 {[%clk 0:02:55]}  a6 {[%clk 0:02:45]} 16. Ne5 {[%clk 0:02:54]}  Ne4 {[%clk 0:02:44]} 17. Nxe4 {[%clk 0:02:53]}  Bxe4 {[%clk 0:02:44]} 18. Nxc6 {[%clk 0:02:48]}  Rxc6 {[%clk 0:02:43]} 19. f3 {[%clk 0:02:46]}  Bg6 {[%clk 0:02:42]} 20. Rfc1 {[%clk 0:02:46]}  Qb6 {[%clk 0:02:37]} 21. Ra2 {[%clk 0:02:37]}  Rfc8 {[%clk 0:02:36]} 22. c4 {[%clk 0:02:33]}  dxc4 {[%clk 0:02:16]} 23. bxc4 {[%clk 0:02:34]}  Qxb2 {[%clk 0:02:11]} 24. Rxb2 {[%clk 0:02:34]}  Ba3 {[%clk 0:02:11]} 25. Rcb1 {[%clk 0:02:32]}  Bxb2 {[%clk 0:02:11]} 26. Rxb2 {[%clk 0:02:32]}  b6 {[%clk 0:02:09]} 27. e4 {[%clk 0:02:28]}  a5 {[%clk 0:01:41]} 28. d5 {[%clk 0:02:27]}  exd5 {[%clk 0:01:38]} 29. cxd5 {[%clk 0:02:28]}  Rc2 {[%clk 0:01:35]} 30. Rxc2 {[%clk 0:02:24]}  Rxc2 {[%clk 0:01:35]} 31. Bb5 {[%clk 0:02:23]}  Rb2 {[%clk 0:01:29]} 32. Bc6 {[%clk 0:02:12]}  f6 {[%clk 0:00:53]} 33. d6 {[%clk 0:02:09]}  Kf7 {[%clk 0:00:40]} 34. d7 {[%clk 0:02:08]}  Ke7 {[%clk 0:00:34]} 35. Bc7 {[%clk 0:02:08]}  Rd2 {[%clk 0:00:32]} 36. Bxb6 {[%clk 0:02:08]}  Rxd7 {[%clk 0:00:19]} 37. Bxd7 {[%clk 0:02:08]}  Kxd7 {[%clk 0:00:20]} 38. Bxa5 {[%clk 0:02:08]}  Ke6 {[%clk 0:00:20]} 39. Bb4 {[%clk 0:02:08]}  f5 {[%clk 0:00:20]} 40. exf5+ {[%clk 0:02:05]}  Bxf5 {[%clk 0:00:19]} 41. g4 {[%clk 0:02:05]}  Bc2 {[%clk 0:00:19]} 42. f4 {[%clk 0:02:04]}  g6 {[%clk 0:00:19]} 43. Kf2 {[%clk 0:02:01]}  h5 {[%clk 0:00:19]} 44. gxh5 {[%clk 0:01:56]} 1/2-1/2


[Site "https://www.chess.com"]

[Event "Titled Tuesday Blitz February 28 Early 2023"]
[White "Primbetov, Kazbek"]
[Black "parintele_chess"]
[WhiteFideId "13702297"]
[WhiteElo "2097"]
[BlackElo "2253"]
[Result "1-0"]
[Round "02"]
[TimeControl "180+2"]
[Date "2023.02.28"]
[WhiteClock "0:00:41"]
[BlackClock "0:00:22"]

1. e4 {[%clk 0:03:00]}  e5 {[%clk 0:02:58]} 2. Nf3 {[%clk 0:03:00]}  Nc6 {[%clk 0:02:58]} 3. Bb5 {[%clk 0:03:01]}  a6 {[%clk 0:02:57]} 4. Ba4 {[%clk 0:03:01]}  Nf6 {[%clk 0:02:57]} 5. O-O {[%clk 0:03:02]}  Be7 {[%clk 0:02:57]} 6. Re1 {[%clk 0:03:01]}  b5 {[%clk 0:02:57]} 7. Bb3 {[%clk 0:03:02]}  O-O {[%clk 0:02:58]} 8. a4 {[%clk 0:03:02]}  Bb7 {[%clk 0:02:57]} 9. d3 {[%clk 0:03:00]}  d5 {[%clk 0:02:57]} 10. axb5 {[%clk 0:02:54]}  axb5 {[%clk 0:02:55]} 11. Rxa8 {[%clk 0:02:55]}  Bxa8 {[%clk 0:02:56]} 12. exd5 {[%clk 0:02:42]}  Nxd5 {[%clk 0:02:57]} 13. Nxe5 {[%clk 0:02:42]}  Nxe5 {[%clk 0:02:56]} 14. Rxe5 {[%clk 0:02:43]}  Bf6 {[%clk 0:02:54]} 15. Re1 {[%clk 0:02:34]}  Qd6 {[%clk 0:02:47]} 16. Nd2 {[%clk 0:02:31]}  Bd4 {[%clk 0:02:09]} 17. Ne4 {[%clk 0:02:24]}  Qg6 {[%clk 0:02:09]} 18. c3 {[%clk 0:02:18]}  Be5 {[%clk 0:02:00]} 19. Qf3 {[%clk 0:02:07]}  f5 {[%clk 0:01:53]} 20. Nf6+ {[%clk 0:01:56]}  Bxf6 {[%clk 0:01:49]} 21. Bxd5+ {[%clk 0:01:56]}  Bxd5 {[%clk 0:01:48]} 22. Qxd5+ {[%clk 0:01:56]}  Kh8 {[%clk 0:01:48]} 23. Qxb5 {[%clk 0:01:38]}  h6 {[%clk 0:01:47]} 24. Bf4 {[%clk 0:01:37]}  Qg4 {[%clk 0:01:41]} 25. Qc4 {[%clk 0:01:13]}  c6 {[%clk 0:01:22]} 26. h3 {[%clk 0:01:12]}  Qh4 {[%clk 0:01:17]} 27. Bd6 {[%clk 0:01:10]}  Qxc4 {[%clk 0:01:16]} 28. dxc4 {[%clk 0:01:11]}  Ra8 {[%clk 0:01:06]} 29. Re3 {[%clk 0:00:51]}  Ra1+ {[%clk 0:00:58]} 30. Kh2 {[%clk 0:00:50]}  Rf1 {[%clk 0:00:42]} 31. f4 {[%clk 0:00:44]}  Rf2 {[%clk 0:00:37]} 32. b4 {[%clk 0:00:43]}  Rc2 {[%clk 0:00:37]} 33. b5 {[%clk 0:00:42]}  cxb5 {[%clk 0:00:36]} 34. cxb5 {[%clk 0:00:43]}  Bxc3 {[%clk 0:00:28]} 35. b6 {[%clk 0:00:42]}  Bd4 {[%clk 0:00:28]} 36. b7 {[%clk 0:00:42]}  Rb2 {[%clk 0:00:22]} 37. Re8+ {[%clk 0:00:40]}  Kh7 {[%clk 0:00:22]} 38. b8=Q {[%clk 0:00:41]} 1-0


[Site "https://www.chess.com"]

[Event "Titled Tuesday Blitz February 28 Early 2023"]
[White "Mohammed, Dilshad"]
[Black "Tagliati, Eleonore"]
[WhiteFideId "5050421"]
[BlackFideId "45172234"]
[WhiteElo "2102"]
[BlackElo "2237"]
[Result "1-0"]
[Round "02"]
[TimeControl "180+2"]
[Date "2023.02.28"]
[WhiteClock "0:01:20"]
[BlackClock "0:00:11"]

1. Nf3 {[%clk 0:02:57]}  d5 {[%clk 0:02:58]} 2. c4 {[%clk 0:02:57]}  c6 {[%clk 0:02:58]} 3. e3 {[%clk 0:02:57]}  Nf6 {[%clk 0:02:58]} 4. Nc3 {[%clk 0:02:57]}  Bf5 {[%clk 0:02:48]} 5. cxd5 {[%clk 0:02:56]}  cxd5 {[%clk 0:02:46]} 6. Qb3 {[%clk 0:02:57]}  Qd7 {[%clk 0:02:24]} 7. Ne5 {[%clk 0:02:52]}  Qc7 {[%clk 0:02:17]} 8. Bb5+ {[%clk 0:02:50]}  Nc6 {[%clk 0:02:11]} 9. d4 {[%clk 0:02:47]}  e6 {[%clk 0:02:04]} 10. O-O {[%clk 0:02:46]}  Bd6 {[%clk 0:01:59]} 11. f4 {[%clk 0:02:46]}  O-O {[%clk 0:01:57]} 12. Bd2 {[%clk 0:02:46]}  a6 {[%clk 0:01:56]} 13. Bxc6 {[%clk 0:02:40]}  bxc6 {[%clk 0:01:57]} 14. Qa4 {[%clk 0:02:41]}  c5 {[%clk 0:01:55]} 15. Rac1 {[%clk 0:02:41]}  Qb6 {[%clk 0:01:53]} 16. b3 {[%clk 0:02:35]}  Ne4 {[%clk 0:01:45]} 17. Nxe4 {[%clk 0:02:33]}  Bxe4 {[%clk 0:01:46]} 18. Nd7 {[%clk 0:02:31]}  Qb5 {[%clk 0:01:22]} 19. Nxf8 {[%clk 0:02:24]}  Qxa4 {[%clk 0:01:12]} 20. bxa4 {[%clk 0:02:23]}  Bxf8 {[%clk 0:01:13]} 21. dxc5 {[%clk 0:02:24]}  Rc8 {[%clk 0:01:13]} 22. c6 {[%clk 0:02:17]}  Bd6 {[%clk 0:01:11]} 23. Ba5 {[%clk 0:02:16]}  Kf8 {[%clk 0:01:06]} 24. c7 {[%clk 0:02:15]}  Ke7 {[%clk 0:01:05]} 25. Rf2 {[%clk 0:02:15]}  Kd7 {[%clk 0:01:00]} 26. g3 {[%clk 0:02:11]}  h5 {[%clk 0:00:48]} 27. Bb6 {[%clk 0:02:10]}  g6 {[%clk 0:00:45]} 28. a5 {[%clk 0:02:10]}  Bd3 {[%clk 0:00:35]} 29. h4 {[%clk 0:02:07]}  Be4 {[%clk 0:00:34]} 30. Rff1 {[%clk 0:01:59]}  Bd3 {[%clk 0:00:32]} 31. Rfd1 {[%clk 0:01:58]}  Be4 {[%clk 0:00:32]} 32. Rd2 {[%clk 0:01:58]}  Ba3 {[%clk 0:00:31]} 33. Rf1 {[%clk 0:01:51]}  Bb4 {[%clk 0:00:24]} 34. Rb2 {[%clk 0:01:48]}  Ba3 {[%clk 0:00:24]} 35. Rb3 {[%clk 0:01:47]}  Bd6 {[%clk 0:00:24]} 36. Rc1 {[%clk 0:01:46]}  Bf3 {[%clk 0:00:22]} 37. Kf2 {[%clk 0:01:42]}  Be4 {[%clk 0:00:21]} 38. a3 {[%clk 0:01:40]}  f6 {[%clk 0:00:17]} 39. Rbc3 {[%clk 0:01:40]}  Bf5 {[%clk 0:00:17]} 40. Bc5 {[%clk 0:01:36]}  Rxc7 {[%clk 0:00:14]} 41. Bxd6 {[%clk 0:01:35]}  Rxc3 {[%clk 0:00:15]} 42. Rxc3 {[%clk 0:01:36]}  Kxd6 {[%clk 0:00:16]} 43. Rb3 {[%clk 0:01:36]}  Kc5 {[%clk 0:00:16]} 44. Rb6 {[%clk 0:01:36]}  Bd3 {[%clk 0:00:14]} 45. Ke1 {[%clk 0:01:35]}  e5 {[%clk 0:00:13]} 46. Kd2 {[%clk 0:01:33]}  Bc4 {[%clk 0:00:13]} 47. a4 {[%clk 0:01:27]}  d4 {[%clk 0:00:09]} 48. exd4+ {[%clk 0:01:24]}  Kxd4 {[%clk 0:00:10]} 49. Rxf6 {[%clk 0:01:23]}  Ke4 {[%clk 0:00:10]} 50. fxe5 {[%clk 0:01:21]}  Kxe5 {[%clk 0:00:11]} 51. Rxg6 {[%clk 0:01:20]} 1-0


[Site "https://www.chess.com"]

[Event "Titled Tuesday Blitz February 28 Early 2023"]
[White "Rottenwohrer Suarez, Juan"]
[Black "Simonovic, Miroslav"]
[WhiteFideId "32068182"]
[BlackFideId "919152"]
[WhiteElo "2174"]
[BlackElo "2057"]
[Result "1-0"]
[Round "02"]
[TimeControl "180+2"]
[Date "2023.02.28"]
[WhiteClock "0:00:07"]
[BlackClock "0:00:27"]

1. Nf3 {[%clk 0:03:00]}  c5 {[%clk 0:03:00]} 2. g3 {[%clk 0:03:01]}  Nc6 {[%clk 0:03:00]} 3. Bg2 {[%clk 0:03:01]}  g6 {[%clk 0:03:00]} 4. O-O {[%clk 0:03:02]}  Bg7 {[%clk 0:03:01]} 5. c4 {[%clk 0:03:03]}  e5 {[%clk 0:03:01]} 6. Nc3 {[%clk 0:03:03]}  Nge7 {[%clk 0:03:02]} 7. a3 {[%clk 0:03:03]}  O-O {[%clk 0:03:02]} 8. b4 {[%clk 0:02:59]}  b6 {[%clk 0:02:56]} 9. b5 {[%clk 0:02:56]}  Na5 {[%clk 0:02:50]} 10. Nxe5 {[%clk 0:02:55]}  Bb7 {[%clk 0:02:50]} 11. Bxb7 {[%clk 0:02:53]}  Nxb7 {[%clk 0:02:51]} 12. Nf3 {[%clk 0:02:52]}  d5 {[%clk 0:02:51]} 13. cxd5 {[%clk 0:02:48]}  Nxd5 {[%clk 0:02:52]} 14. Bb2 {[%clk 0:02:48]}  Qd7 {[%clk 0:02:46]} 15. a4 {[%clk 0:02:44]}  Rad8 {[%clk 0:02:45]} 16. Qb3 {[%clk 0:02:36]}  Na5 {[%clk 0:02:41]} 17. Qd1 {[%clk 0:02:10]}  Nc4 {[%clk 0:02:37]} 18. Qb3 {[%clk 0:01:42]}  Nxb2 {[%clk 0:02:35]} 19. Qxb2 {[%clk 0:01:42]}  Nxc3 {[%clk 0:02:16]} 20. dxc3 {[%clk 0:01:42]}  Qe6 {[%clk 0:02:17]} 21. a5 {[%clk 0:01:24]}  Qc4 {[%clk 0:02:09]} 22. axb6 {[%clk 0:01:23]}  Bxc3 {[%clk 0:02:03]} 23. Qc2 {[%clk 0:01:22]}  axb6 {[%clk 0:01:31]} 24. Rac1 {[%clk 0:01:21]}  Rfe8 {[%clk 0:01:19]} 25. Qxc3 {[%clk 0:01:19]}  Qxe2 {[%clk 0:01:18]} 26. Rfe1 {[%clk 0:01:08]}  Qxb5 {[%clk 0:01:16]} 27. Ne5 {[%clk 0:00:54]}  Re6 {[%clk 0:01:00]} 28. Ng4 {[%clk 0:00:52]}  Rd4 {[%clk 0:00:48]} 29. Rxe6 {[%clk 0:00:43]}  fxe6 {[%clk 0:00:49]} 30. Qf3 {[%clk 0:00:33]}  Qa4 {[%clk 0:00:44]} 31. Ne5 {[%clk 0:00:30]}  Qe8 {[%clk 0:00:29]} 32. Ra1 {[%clk 0:00:26]}  Qf8 {[%clk 0:00:15]} 33. Ra8 {[%clk 0:00:23]}  Rd8 {[%clk 0:00:15]} 34. Qf7+ {[%clk 0:00:06]}  Qxf7 {[%clk 0:00:14]} 35. Rxd8+ {[%clk 0:00:07]}  Kg7 {[%clk 0:00:14]} 36. Nxf7 {[%clk 0:00:07]}  Kxf7 {[%clk 0:00:14]} 37. Rb8 {[%clk 0:00:07]}  Kf6 {[%clk 0:00:15]} 38. Rxb6 {[%clk 0:00:08]}  Ke5 {[%clk 0:00:16]} 39. Kf1 {[%clk 0:00:07]}  Kd4 {[%clk 0:00:16]} 40. Ke2 {[%clk 0:00:07]}  e5 {[%clk 0:00:16]} 41. Kd2 {[%clk 0:00:07]}  e4 {[%clk 0:00:16]} 42. Rd6+ {[%clk 0:00:07]}  Ke5 {[%clk 0:00:16]} 43. Rd7 {[%clk 0:00:07]}  Kf5 {[%clk 0:00:15]} 44. Rxh7 {[%clk 0:00:06]}  Kg4 {[%clk 0:00:16]} 45. Ke3 {[%clk 0:00:06]}  g5 {[%clk 0:00:17]} 46. h3+ {[%clk 0:00:05]}  Kf5 {[%clk 0:00:17]} 47. Rc7 {[%clk 0:00:05]}  c4 {[%clk 0:00:18]} 48. Rc5+ {[%clk 0:00:05]}  Kf6 {[%clk 0:00:18]} 49. Rxc4 {[%clk 0:00:06]}  Ke5 {[%clk 0:00:19]} 50. Rxe4+ {[%clk 0:00:06]}  Kf6 {[%clk 0:00:20]} 51. Rg4 {[%clk 0:00:06]}  Kg6 {[%clk 0:00:21]} 52. h4 {[%clk 0:00:06]}  Kh5 {[%clk 0:00:22]} 53. Rxg5+ {[%clk 0:00:07]}  Kh6 {[%clk 0:00:23]} 54. f4 {[%clk 0:00:07]}  Kh7 {[%clk 0:00:24]} 55. f5 {[%clk 0:00:07]}  Kh6 {[%clk 0:00:24]} 56. f6 {[%clk 0:00:07]}  Kh7 {[%clk 0:00:25]} 57. f7 {[%clk 0:00:08]}  Kh8 {[%clk 0:00:26]} 58. f8=Q+ {[%clk 0:00:07]}  Kh7 {[%clk 0:00:27]} 59. Qg7# {[%clk 0:00:07]} 1-0


[Site "https://www.chess.com"]